[Event "January 9 Late 2024"]
[Site "https://www.chess.com"]
[Date "2024.01.09"]
[Round "10"]
[White "Tikhonov, Viacheslav"]
[Black "Curtis, John"]
[Result "1/2-1/2"]
[Board "126"]
[TimeControl "180+1"]
[WhiteFideId "44196407"]
[BlackFideId "3200256"]
[WhiteElo "2513"]
[BlackElo "2132"]
[WhiteTeam "RUS"]
[BlackTeam "AUS"]
[WhiteClock "0:00:52"]
[BlackClock "0:00:20"]

1. e4 {[%clk 0:03:00]}  e5 {[%clk 0:02:59]} 2. Nf3 {[%clk 0:02:59]}  Nf6 {[%clk 0:02:57]} 3. Nxe5 {[%clk 0:02:57]}  Qe7 {[%clk 0:02:55]} 4. d4 {[%clk 0:02:50]}  d6 {[%clk 0:02:48]} 5. Nd3 {[%clk 0:02:47]}  Nxe4 {[%clk 0:02:47]} 6. Be2 {[%clk 0:02:46]}  Qd8 {[%clk 0:02:47]} 7. O-O {[%clk 0:02:47]}  Be7 {[%clk 0:02:47]} 8. Re1 {[%clk 0:02:45]}  Nf6 {[%clk 0:02:45]} 9. c4 {[%clk 0:02:43]}  O-O {[%clk 0:02:44]} 10. Nc3 {[%clk 0:02:44]}  Bf5 {[%clk 0:02:41]} 11. Bf3 {[%clk 0:02:42]}  Nc6 {[%clk 0:02:40]} 12. Nf4 {[%clk 0:02:43]}  h6 {[%clk 0:02:32]} 13. a3 {[%clk 0:02:42]}  Re8 {[%clk 0:02:31]} 14. b4 {[%clk 0:02:41]}  Bf8 {[%clk 0:02:11]} 15. Rxe8 {[%clk 0:02:41]}  Qxe8 {[%clk 0:02:09]} 16. Bb2 {[%clk 0:02:39]}  Ne4 {[%clk 0:02:01]} 17. Qe2 {[%clk 0:02:32]}  Nxc3 {[%clk 0:02:00]} 18. Bxc3 {[%clk 0:02:33]}  Qxe2 {[%clk 0:01:59]} 19. Bxe2 {[%clk 0:02:31]}  Ne7 {[%clk 0:01:55]} 20. Bf3 {[%clk 0:02:30]}  c6 {[%clk 0:01:53]} 21. d5 {[%clk 0:02:31]}  Rc8 {[%clk 0:01:49]} 22. dxc6 {[%clk 0:02:29]}  bxc6 {[%clk 0:01:43]} 23. g4 {[%clk 0:02:28]}  Be6 {[%clk 0:01:42]} 24. Nxe6 {[%clk 0:02:27]}  fxe6 {[%clk 0:01:42]} 25. Rd1 {[%clk 0:02:22]}  d5 {[%clk 0:01:42]} 26. Bd4 {[%clk 0:02:20]}  dxc4 {[%clk 0:01:33]} 27. Rc1 {[%clk 0:02:20]}  Nd5 {[%clk 0:01:30]} 28. Rxc4 {[%clk 0:02:20]}  a6 {[%clk 0:01:24]} 29. Be2 {[%clk 0:02:18]}  Bd6 {[%clk 0:01:14]} 30. Rc2 {[%clk 0:02:15]}  Ne7 {[%clk 0:01:09]} 31. Bc5 {[%clk 0:02:12]}  Rd8 {[%clk 0:01:04]} 32. Rd2 {[%clk 0:02:09]}  Bxh2+ {[%clk 0:01:01]} 33. Kxh2 {[%clk 0:02:10]}  Rxd2 {[%clk 0:01:01]} 34. Bxa6 {[%clk 0:02:07]}  Nd5 {[%clk 0:01:01]} 35. Bb7 {[%clk 0:02:02]}  Ra2 {[%clk 0:01:00]} 36. Bxc6 {[%clk 0:01:53]}  Rxa3 {[%clk 0:01:00]} 37. b5 {[%clk 0:01:45]}  Rb3 {[%clk 0:00:56]} 38. Bd4 {[%clk 0:01:40]}  Kf7 {[%clk 0:00:55]} 39. f4 {[%clk 0:01:34]}  Rb4 {[%clk 0:00:47]} 40. Bc5 {[%clk 0:01:30]}  Rxf4 {[%clk 0:00:45]} 41. Kg3 {[%clk 0:01:25]}  Rc4 {[%clk 0:00:43]} 42. Bd6 {[%clk 0:01:19]}  Rc3+ {[%clk 0:00:42]} 43. Kf2 {[%clk 0:01:16]}  Rb3 {[%clk 0:00:37]} 44. Bc5 {[%clk 0:01:06]}  Nf6 {[%clk 0:00:32]} 45. b6 {[%clk 0:01:01]}  Nxg4+ {[%clk 0:00:32]} 46. Ke2 {[%clk 0:01:02]}  Ne5 {[%clk 0:00:32]} 47. Ba4 {[%clk 0:00:59]}  Rb2+ {[%clk 0:00:29]} 48. Kd1 {[%clk 0:00:59]}  Nc4 {[%clk 0:00:15]} 49. Kc1 {[%clk 0:00:52]}  Rxb6 {[%clk 0:00:15]} 50. Bxb6 {[%clk 0:00:52]}  Nxb6 {[%clk 0:00:15]} 51. Bb3 {[%clk 0:00:53]}  Nd5 {[%clk 0:00:15]} 52. Kd2 {[%clk 0:00:53]}  Kf6 {[%clk 0:00:16]} 53. Kd3 {[%clk 0:00:54]}  g5 {[%clk 0:00:16]} 54. Ke4 {[%clk 0:00:55]}  h5 {[%clk 0:00:17]} 55. Bd1 {[%clk 0:00:55]}  g4 {[%clk 0:00:17]} 56. Kd4 {[%clk 0:00:54]}  Kg5 {[%clk 0:00:17]} 57. Ke4 {[%clk 0:00:55]}  h4 {[%clk 0:00:17]} 58. Ke5 {[%clk 0:00:55]}  Nf4 {[%clk 0:00:17]} 59. Ke4 {[%clk 0:00:55]}  h3 {[%clk 0:00:18]} 60. Ke3 {[%clk 0:00:54]}  h2 {[%clk 0:00:18]} 61. Bf3 {[%clk 0:00:55]}  h1=Q {[%clk 0:00:19]} 62. Bxh1 {[%clk 0:00:55]}  Kf5 {[%clk 0:00:18]} 63. Kd4 {[%clk 0:00:55]}  e5+ {[%clk 0:00:19]} 64. Ke3 {[%clk 0:00:55]}  g3 {[%clk 0:00:20]} 65. Be4+ {[%clk 0:00:55]}  Kg4 {[%clk 0:00:19]} 66. Bc6 {[%clk 0:00:51]}  g2 {[%clk 0:00:20]} 67. Kf2 {[%clk 0:00:51]}  Kf5 {[%clk 0:00:19]} 68. Bf3 {[%clk 0:00:48]}  e4 {[%clk 0:00:19]} 69. Bxg2 {[%clk 0:00:48]}  Nxg2 {[%clk 0:00:19]} 70. Kxg2 {[%clk 0:00:49]}  Kf4 {[%clk 0:00:16]} 71. Kf2 {[%clk 0:00:50]}  e3+ {[%clk 0:00:17]} 72. Ke2 {[%clk 0:00:50]}  Ke4 {[%clk 0:00:17]} 73. Ke1 {[%clk 0:00:51]}  Kd3 {[%clk 0:00:18]} 74. Kd1 {[%clk 0:00:51]}  e2+ {[%clk 0:00:19]} 75. Ke1 {[%clk 0:00:52]}  Ke3 {[%clk 0:00:20]} 1/2-1/2

[Event "January 9 Late 2024"]
[Site "https://www.chess.com"]
[Date "2024.01.09"]
[Round "10"]
[White "Petersson, Kjell"]
[Black "Romero Ruscalleda, Josep"]
[Result "0-1"]
[Board "127"]
[TimeControl "180+1"]
[WhiteFideId "1705148"]
[BlackFideId "2231859"]
[WhiteElo "2150"]
[BlackElo "2258"]
[WhiteTeam "SWE"]
[BlackTeam "ESP"]
[WhiteClock "0:00:00"]
[BlackClock "0:00:22"]

1. d4 {[%clk 0:03:00]}  g6 {[%clk 0:02:55]} 2. e4 {[%clk 0:02:57]}  Bg7 {[%clk 0:02:55]} 3. Nc3 {[%clk 0:02:55]}  d6 {[%clk 0:02:55]} 4. Nf3 {[%clk 0:02:49]}  a6 {[%clk 0:02:55]} 5. Bf4 {[%clk 0:02:49]}  b5 {[%clk 0:02:54]} 6. Qd2 {[%clk 0:02:46]}  Bb7 {[%clk 0:02:54]} 7. Bd3 {[%clk 0:02:42]}  Nf6 {[%clk 0:02:51]} 8. Bh6 {[%clk 0:02:24]}  Bxh6 {[%clk 0:02:49]} 9. Qxh6 {[%clk 0:02:24]}  b4 {[%clk 0:02:49]} 10. Nd5 {[%clk 0:02:12]}  Nxd5 {[%clk 0:02:36]} 11. exd5 {[%clk 0:02:11]}  Bxd5 {[%clk 0:02:36]} 12. Qg7 {[%clk 0:02:11]}  Rf8 {[%clk 0:02:35]} 13. Qxh7 {[%clk 0:02:10]}  Bxf3 {[%clk 0:02:32]} 14. gxf3 {[%clk 0:02:10]}  Qd7 {[%clk 0:02:30]} 15. O-O-O {[%clk 0:02:06]}  Nc6 {[%clk 0:02:25]} 16. Qh4 {[%clk 0:01:47]}  d5 {[%clk 0:02:13]} 17. Rhe1 {[%clk 0:01:43]}  Na5 {[%clk 0:02:01]} 18. Kb1 {[%clk 0:01:36]}  Nc4 {[%clk 0:01:55]} 19. f4 {[%clk 0:01:22]}  Nd6 {[%clk 0:01:50]} 20. Qg5 {[%clk 0:01:16]}  c6 {[%clk 0:01:42]} 21. Re2 {[%clk 0:01:04]}  Ra7 {[%clk 0:01:40]} 22. Rde1 {[%clk 0:01:04]}  Kd8 {[%clk 0:01:21]} 23. Rxe7 {[%clk 0:00:49]}  Qxe7 {[%clk 0:01:20]} 24. Rxe7 {[%clk 0:00:50]}  Rxe7 {[%clk 0:01:20]} 25. Kc1 {[%clk 0:00:49]}  Re8 {[%clk 0:01:16]} 26. Kd2 {[%clk 0:00:47]}  Kc7 {[%clk 0:01:16]} 27. h4 {[%clk 0:00:45]}  Re4 {[%clk 0:01:12]} 28. c3 {[%clk 0:00:42]}  bxc3+ {[%clk 0:01:11]} 29. bxc3 {[%clk 0:00:43]}  Re2+ {[%clk 0:01:06]} 30. Kd1 {[%clk 0:00:36]}  Rxf2 {[%clk 0:01:04]} 31. Qg3 {[%clk 0:00:27]}  Rxa2 {[%clk 0:00:59]} 32. f5 {[%clk 0:00:25]}  gxf5 {[%clk 0:00:59]} 33. Bxf5 {[%clk 0:00:22]}  Ree2 {[%clk 0:00:58]} 34. Bb1 {[%clk 0:00:19]}  Rg2 {[%clk 0:00:53]} 35. Qe3 {[%clk 0:00:14]}  Rab2 {[%clk 0:00:33]} 36. Qe7+ {[%clk 0:00:13]}  Kc8 {[%clk 0:00:25]} 37. Qf8+ {[%clk 0:00:12]}  Kd7 {[%clk 0:00:25]} 38. Kc1 {[%clk 0:00:00]}  Rbf2 {[%clk 0:00:22]} 0-1

[Event "January 9 Late 2024"]
[Site "https://www.chess.com"]
[Date "2024.01.10"]
[Round "10"]
[White "Mena, Martin"]
[Black "Rose, Felix"]
[Result "0-1"]
[Board "129"]
[TimeControl "180+1"]
[WhiteFideId "10651225"]
[BlackFideId "5105722"]
[WhiteElo "2097"]
[BlackElo "2243"]
[WhiteTeam "EGY"]
[BlackTeam "MEX"]
[WhiteClock "0:00:07"]
[BlackClock "0:01:51"]

1. c4 {[%clk 0:02:55]}  e6 {[%clk 0:02:59]} 2. g3 {[%clk 0:02:55]}  d5 {[%clk 0:02:57]} 3. Bg2 {[%clk 0:02:55]}  Nf6 {[%clk 0:02:58]} 4. d4 {[%clk 0:02:55]}  dxc4 {[%clk 0:02:57]} 5. Nf3 {[%clk 0:02:55]}  a6 {[%clk 0:02:56]} 6. O-O {[%clk 0:02:54]}  Nc6 {[%clk 0:02:56]} 7. e3 {[%clk 0:02:27]}  Bd7 {[%clk 0:02:54]} 8. Qc2 {[%clk 0:02:24]}  Bd6 {[%clk 0:02:48]} 9. Qxc4 {[%clk 0:02:18]}  Rb8 {[%clk 0:02:48]} 10. Nc3 {[%clk 0:02:16]}  O-O {[%clk 0:02:47]} 11. b3 {[%clk 0:02:12]}  h6 {[%clk 0:02:47]} 12. Bb2 {[%clk 0:02:10]}  Qe7 {[%clk 0:02:43]} 13. Qd3 {[%clk 0:02:07]}  e5 {[%clk 0:02:38]} 14. dxe5 {[%clk 0:02:03]}  Nxe5 {[%clk 0:02:37]} 15. Nxe5 {[%clk 0:01:42]}  Bxe5 {[%clk 0:02:38]} 16. Rfd1 {[%clk 0:01:29]}  Bg4 {[%clk 0:02:37]} 17. f3 {[%clk 0:01:27]}  Rfd8 {[%clk 0:02:37]} 18. Qe2 {[%clk 0:01:18]}  Qb4 {[%clk 0:02:32]} 19. Qc2 {[%clk 0:00:46]}  Bf5 {[%clk 0:02:22]} 20. e4 {[%clk 0:00:44]}  Be6 {[%clk 0:02:17]} 21. f4 {[%clk 0:00:35]}  Bd4+ {[%clk 0:02:14]} 22. Kh1 {[%clk 0:00:33]}  Ng4 {[%clk 0:02:14]} 23. Rd2 {[%clk 0:00:17]}  Ne3 {[%clk 0:02:01]} 24. Qd3 {[%clk 0:00:17]}  Nxg2 {[%clk 0:01:55]} 25. Kxg2 {[%clk 0:00:15]}  Bxc3 {[%clk 0:01:53]} 26. Qxc3 {[%clk 0:00:15]}  Rxd2+ {[%clk 0:01:52]} 27. Kh1 {[%clk 0:00:07]}  Qxe4+ {[%clk 0:01:51]} 0-1

[Event "January 9 Late 2024"]
[Site "https://www.chess.com"]
[Date "2024.01.09"]
[Round "10"]
[White "Dias, Joao Batista"]
[Black "Gonzalez Vega, Alejandro"]
[Result "1/2-1/2"]
[Board "130"]
[TimeControl "180+1"]
[WhiteFideId "2108240"]
[BlackFideId "3510042"]
[WhiteElo "2063"]
[BlackElo "2224"]
[WhiteTeam "BRA"]
[BlackTeam "CUB"]
[WhiteClock "0:00:24"]
[BlackClock "0:00:13"]

1. e4 {[%clk 0:03:00]}  c5 {[%clk 0:02:59]} 2. Nf3 {[%clk 0:03:00]}  a6 {[%clk 0:02:59]} 3. d4 {[%clk 0:03:00]}  cxd4 {[%clk 0:03:00]} 4. Nxd4 {[%clk 0:03:00]}  Nf6 {[%clk 0:03:00]} 5. Nc3 {[%clk 0:03:00]}  e5 {[%clk 0:03:00]} 6. Nb3 {[%clk 0:02:57]}  d6 {[%clk 0:03:00]} 7. Bd3 {[%clk 0:02:57]}  Be6 {[%clk 0:03:00]} 8. Be3 {[%clk 0:02:58]}  Be7 {[%clk 0:03:00]} 9. O-O {[%clk 0:02:57]}  Nbd7 {[%clk 0:03:00]} 10. f3 {[%clk 0:02:58]}  Qc7 {[%clk 0:03:00]} 11. Nd2 {[%clk 0:02:57]}  b5 {[%clk 0:02:59]} 12. a3 {[%clk 0:02:57]}  Rc8 {[%clk 0:02:58]} 13. Kh1 {[%clk 0:02:55]}  Nc5 {[%clk 0:02:58]} 14. Rc1 {[%clk 0:02:53]}  O-O {[%clk 0:02:57]} 15. Qe2 {[%clk 0:02:53]}  d5 {[%clk 0:02:52]} 16. Nxd5 {[%clk 0:02:52]}  Nxd5 {[%clk 0:02:52]} 17. exd5 {[%clk 0:02:52]}  Bxd5 {[%clk 0:02:52]} 18. Ne4 {[%clk 0:02:52]}  Nxe4 {[%clk 0:02:50]} 19. Bxe4 {[%clk 0:02:50]}  Be6 {[%clk 0:02:43]} 20. Qf2 {[%clk 0:02:30]}  f5 {[%clk 0:02:28]} 21. Bd3 {[%clk 0:02:30]}  e4 {[%clk 0:02:16]} 22. Be2 {[%clk 0:02:27]}  Bd6 {[%clk 0:02:04]} 23. Qh4 {[%clk 0:02:25]}  f4 {[%clk 0:01:58]} 24. Bd4 {[%clk 0:02:22]}  e3 {[%clk 0:01:57]} 25. c3 {[%clk 0:02:20]}  Be7 {[%clk 0:01:44]} 26. Qh5 {[%clk 0:02:15]}  Rf5 {[%clk 0:01:40]} 27. Qg4 {[%clk 0:02:11]}  Rf6 {[%clk 0:01:23]} 28. Qh5 {[%clk 0:02:08]}  Rh6 {[%clk 0:01:20]} 29. Qe5 {[%clk 0:02:04]}  Bd6 {[%clk 0:01:15]} 30. Qe4 {[%clk 0:01:59]}  Rf8 {[%clk 0:01:10]} 31. Rcd1 {[%clk 0:01:51]}  Qe7 {[%clk 0:00:59]} 32. Bxg7 {[%clk 0:01:02]}  Kxg7 {[%clk 0:00:39]} 33. Qd4+ {[%clk 0:01:02]}  Kg8 {[%clk 0:00:29]} 34. Qxd6 {[%clk 0:01:01]}  Qh4 {[%clk 0:00:29]} 35. h3 {[%clk 0:00:29]}  Bxh3 {[%clk 0:00:28]} 36. Qxh6 {[%clk 0:00:28]}  Qxh6 {[%clk 0:00:28]} 37. gxh3 {[%clk 0:00:28]}  Qxh3+ {[%clk 0:00:28]} 38. Kg1 {[%clk 0:00:29]}  Qg3+ {[%clk 0:00:27]} 39. Kh1 {[%clk 0:00:29]}  Rf6 {[%clk 0:00:26]} 40. Rd8+ {[%clk 0:00:25]}  Kf7 {[%clk 0:00:26]} 41. Rd7+ {[%clk 0:00:24]}  Kg8 {[%clk 0:00:17]} 42. Rd8+ {[%clk 0:00:24]}  Kg7 {[%clk 0:00:15]} 43. Rd7+ {[%clk 0:00:24]}  Kg8 {[%clk 0:00:13]} 44. Rd8+ {[%clk 0:00:24]} 1/2-1/2

[Event "January 9 Late 2024"]
[Site "https://www.chess.com"]
[Date "2024.01.09"]
[Round "10"]
[White "Panico, Nick"]
[Black "Varela La Madrid, Maria"]
[Result "0-1"]
[Board "131"]
[TimeControl "180+1"]
[WhiteFideId "2026724"]
[BlackFideId "3903346"]
[WhiteElo "2059"]
[BlackElo "2187"]
[WhiteTeam "USA"]
[BlackTeam "VEN"]
[WhiteClock "0:00:00"]
[BlackClock "0:00:13"]

1. d4 {[%clk 0:02:17]}  Nf6 {[%clk 0:02:59]} 2. Bf4 {[%clk 0:02:17]}  d5 {[%clk 0:02:59]} 3. e3 {[%clk 0:02:17]}  c5 {[%clk 0:03:00]} 4. Nf3 {[%clk 0:02:14]}  Nc6 {[%clk 0:03:00]} 5. Nbd2 {[%clk 0:02:13]}  Bg4 {[%clk 0:03:00]} 6. c3 {[%clk 0:02:10]}  e6 {[%clk 0:02:58]} 7. h3 {[%clk 0:02:01]}  Bh5 {[%clk 0:02:57]} 8. Bb5 {[%clk 0:02:01]}  cxd4 {[%clk 0:02:39]} 9. exd4 {[%clk 0:02:00]}  Bd6 {[%clk 0:02:39]} 10. Bxd6 {[%clk 0:01:50]}  Qxd6 {[%clk 0:02:40]} 11. Qa4 {[%clk 0:01:50]}  O-O {[%clk 0:02:24]} 12. Bxc6 {[%clk 0:01:49]}  bxc6 {[%clk 0:02:18]} 13. Ne5 {[%clk 0:01:48]}  c5 {[%clk 0:01:42]} 14. O-O {[%clk 0:01:47]}  Qb6 {[%clk 0:01:08]} 15. g4 {[%clk 0:01:32]}  Bg6 {[%clk 0:01:04]} 16. g5 {[%clk 0:01:32]}  Nh5 {[%clk 0:00:54]} 17. Nd7 {[%clk 0:01:30]}  Qxb2 {[%clk 0:00:52]} 18. Nxf8 {[%clk 0:01:28]}  Qxd2 {[%clk 0:00:45]} 19. Nxg6 {[%clk 0:01:27]}  Qxg5+ {[%clk 0:00:29]} 20. Kh2 {[%clk 0:01:17]}  hxg6 {[%clk 0:00:23]} 21. dxc5 {[%clk 0:01:17]}  Nf4 {[%clk 0:00:18]} 22. Rg1 {[%clk 0:01:16]}  Qf5 {[%clk 0:00:16]} 23. Rg3 {[%clk 0:01:14]}  Ne2 {[%clk 0:00:09]} 24. Rg2 {[%clk 0:00:51]}  Nf4 {[%clk 0:00:08]} 25. Rg4 {[%clk 0:00:37]}  Nd3 {[%clk 0:00:07]} 26. Rf1 {[%clk 0:00:32]}  Qe5+ {[%clk 0:00:05]} 27. Kg2 {[%clk 0:00:27]}  Qxc3 {[%clk 0:00:04]} 28. Qd4 {[%clk 0:00:26]}  Qxd4 {[%clk 0:00:04]} 29. Rxd4 {[%clk 0:00:27]}  Nxc5 {[%clk 0:00:05]} 30. Rb1 {[%clk 0:00:27]}  Ne4 {[%clk 0:00:04]} 31. Rb7 {[%clk 0:00:26]}  a5 {[%clk 0:00:04]} 32. Ra4 {[%clk 0:00:26]}  Nd6 {[%clk 0:00:03]} 33. Rd7 {[%clk 0:00:24]}  Nc4 {[%clk 0:00:03]} 34. Rb7 {[%clk 0:00:19]}  g5 {[%clk 0:00:03]} 35. Rb5 {[%clk 0:00:19]}  g6 {[%clk 0:00:03]} 36. Kf3 {[%clk 0:00:19]}  Kg7 {[%clk 0:00:03]} 37. Ke2 {[%clk 0:00:19]}  Kf6 {[%clk 0:00:04]} 38. Kd3 {[%clk 0:00:19]}  Rh8 {[%clk 0:00:04]} 39. Rb3 {[%clk 0:00:16]}  Rxh3+ {[%clk 0:00:04]} 40. Kd4 {[%clk 0:00:16]}  Rh4+ {[%clk 0:00:04]} 41. Kc5 {[%clk 0:00:17]}  Rf4 {[%clk 0:00:04]} 42. f3 {[%clk 0:00:15]}  g4 {[%clk 0:00:05]} 43. fxg4 {[%clk 0:00:15]}  Rxg4 {[%clk 0:00:05]} 44. Kc6 {[%clk 0:00:15]}  Rf4 {[%clk 0:00:05]} 45. Kc5 {[%clk 0:00:15]}  g5 {[%clk 0:00:06]} 46. Rg3 {[%clk 0:00:15]}  Kf5 {[%clk 0:00:06]} 47. Kc6 {[%clk 0:00:13]}  f6 {[%clk 0:00:06]} 48. Kb5 {[%clk 0:00:11]}  g4 {[%clk 0:00:06]} 49. Kc6 {[%clk 0:00:11]}  Rf3 {[%clk 0:00:06]} 50. Ra3 {[%clk 0:00:12]}  Rxg3 {[%clk 0:00:06]} 51. Rxg3 {[%clk 0:00:12]}  Kf4 {[%clk 0:00:06]} 52. Rg1 {[%clk 0:00:12]}  g3 {[%clk 0:00:06]} 53. Kd7 {[%clk 0:00:13]}  Kf3 {[%clk 0:00:06]} 54. Kxe6 {[%clk 0:00:13]}  g2 {[%clk 0:00:06]} 55. Kxd5 {[%clk 0:00:14]}  Kf2 {[%clk 0:00:05]} 56. Rxg2+ {[%clk 0:00:14]}  Kxg2 {[%clk 0:00:06]} 57. Kxc4 {[%clk 0:00:13]}  Kf3 {[%clk 0:00:06]} 58. Kb5 {[%clk 0:00:14]}  f5 {[%clk 0:00:06]} 59. Kxa5 {[%clk 0:00:15]}  f4 {[%clk 0:00:06]} 60. Kb6 {[%clk 0:00:14]}  Kg3 {[%clk 0:00:07]} 61. a4 {[%clk 0:00:14]}  f3 {[%clk 0:00:08]} 62. a5 {[%clk 0:00:14]}  f2 {[%clk 0:00:08]} 63. a6 {[%clk 0:00:15]}  f1=Q {[%clk 0:00:09]} 64. a7 {[%clk 0:00:16]}  Qf3 {[%clk 0:00:10]} 65. Kc7 {[%clk 0:00:16]}  Qa8 {[%clk 0:00:11]} 66. Kb6 {[%clk 0:00:16]}  Kf4 {[%clk 0:00:11]} 67. Ka6 {[%clk 0:00:17]}  Ke5 {[%clk 0:00:11]} 68. Kb6 {[%clk 0:00:18]}  Kd6 {[%clk 0:00:11]} 69. Ka6 {[%clk 0:00:19]}  Kc6 {[%clk 0:00:11]} 70. Ka5 {[%clk 0:00:20]}  Qxa7+ {[%clk 0:00:12]} 71. Kb4 {[%clk 0:00:21]}  Qc5+ {[%clk 0:00:13]} 72. Kb3 {[%clk 0:00:21]}  Kb5 {[%clk 0:00:13]} 73. Kb2 {[%clk 0:00:07]}  Kb4 {[%clk 0:00:14]} 74. Kb1 {[%clk 0:00:02]}  Qf2 {[%clk 0:00:14]} 75. Kc1 {[%clk 0:00:00]}  Kc3 {[%clk 0:00:13]} 0-1

[Event "January 9 Late 2024"]
[Site "https://www.chess.com"]
[Date "2024.01.09"]
[Round "10"]
[White "Yushko, Olga"]
[Black "Awoki, Daniel Teidi"]
[Result "1-0"]
[Board "132"]
[TimeControl "180+1"]
[WhiteFideId "14114500"]
[BlackFideId "2100827"]
[WhiteElo "2108"]
[BlackElo "2419"]
[WhiteTeam "UKR"]
[BlackTeam "BRA"]
[WhiteClock "0:00:39"]
[BlackClock "0:01:12"]

1. d4 {[%clk 0:02:59]}  Nf6 {[%clk 0:02:59]} 2. c4 {[%clk 0:02:59]}  e6 {[%clk 0:03:00]} 3. Nc3 {[%clk 0:02:59]}  d5 {[%clk 0:03:00]} 4. cxd5 {[%clk 0:02:56]}  exd5 {[%clk 0:03:01]} 5. Bg5 {[%clk 0:02:55]}  Nbd7 {[%clk 0:03:02]} 6. e3 {[%clk 0:02:52]}  c6 {[%clk 0:03:01]} 7. Qc2 {[%clk 0:02:51]}  Be7 {[%clk 0:03:01]} 8. Bd3 {[%clk 0:02:49]}  O-O {[%clk 0:03:01]} 9. Nge2 {[%clk 0:02:46]}  h6 {[%clk 0:02:59]} 10. Bh4 {[%clk 0:02:45]}  Re8 {[%clk 0:02:57]} 11. O-O {[%clk 0:02:43]}  Ne4 {[%clk 0:02:57]} 12. Bxe7 {[%clk 0:02:42]}  Qxe7 {[%clk 0:02:58]} 13. Rfe1 {[%clk 0:02:36]}  Nxc3 {[%clk 0:02:55]} 14. bxc3 {[%clk 0:02:32]}  Nf6 {[%clk 0:02:50]} 15. Ng3 {[%clk 0:02:31]}  g6 {[%clk 0:02:48]} 16. Re2 {[%clk 0:02:09]}  h5 {[%clk 0:02:47]} 17. h4 {[%clk 0:02:00]}  Ng4 {[%clk 0:02:43]} 18. Bxg6 {[%clk 0:01:59]}  fxg6 {[%clk 0:02:42]} 19. Qxg6+ {[%clk 0:01:58]}  Kf8 {[%clk 0:02:36]} 20. Qxh5 {[%clk 0:01:56]}  Qf7 {[%clk 0:02:27]} 21. Qg5 {[%clk 0:01:41]}  Qf6 {[%clk 0:02:20]} 22. Qh5 {[%clk 0:01:36]}  Kg7 {[%clk 0:02:09]} 23. f3 {[%clk 0:01:32]}  Rh8 {[%clk 0:02:06]} 24. Qg5+ {[%clk 0:01:28]}  Qxg5 {[%clk 0:02:03]} 25. hxg5 {[%clk 0:01:29]}  Nh2 {[%clk 0:01:57]} 26. e4 {[%clk 0:01:26]}  dxe4 {[%clk 0:01:54]} 27. Rxe4 {[%clk 0:01:20]}  Kg6 {[%clk 0:01:52]} 28. Kf2 {[%clk 0:01:14]}  Kxg5 {[%clk 0:01:49]} 29. Re5+ {[%clk 0:01:14]}  Kg6 {[%clk 0:01:44]} 30. Rae1 {[%clk 0:01:07]}  Bd7 {[%clk 0:01:42]} 31. Re7 {[%clk 0:01:07]}  Rad8 {[%clk 0:01:40]} 32. Ne4 {[%clk 0:01:00]}  Rhf8 {[%clk 0:01:37]} 33. Kg3 {[%clk 0:00:58]}  Rh8 {[%clk 0:01:32]} 34. Nc5 {[%clk 0:00:55]}  Bc8 {[%clk 0:01:28]} 35. Nxb7 {[%clk 0:00:49]}  Rdg8 {[%clk 0:01:29]} 36. Nd6 {[%clk 0:00:43]}  Kf6+ {[%clk 0:01:27]} 37. Kf2 {[%clk 0:00:43]}  Bf5 {[%clk 0:01:20]} 38. Rf7+ {[%clk 0:00:42]}  Kg6 {[%clk 0:01:17]} 39. Rxf5 {[%clk 0:00:42]}  Rb8 {[%clk 0:01:11]} 40. Re6+ {[%clk 0:00:40]}  Kg7 {[%clk 0:01:12]} 41. Rf7+ {[%clk 0:00:39]}  Kg8 {[%clk 0:01:12]} 42. Rg6# {[%clk 0:00:39]} 1-0